fUSD/lending_fUSD_20240331
["ID","MTS","AMOUNT","RATE_DAILY","PERIOD"]
[321063847,1711848639607,-214.0,0.00040612,2]
[321063848,1711848639616,-1258.33216804,0.00041,10]
[321063881,1711848645791,-840.0,0.00040288,2]
[321063882,1711848645801,-4182.1382916,0.00041,10]
[321063883,1711848645810,-382.0,0.00041,2]
[321063884,1711848645824,-500.0,0.00041095,4]
[321063885,1711848645834,-500.0,0.00041095,4]
[321063886,1711848645843,-909.47,0.00041095,4]
[321063887,1711848645853,-782.45,0.00041095,4]
[321063888,1711848645862,-500.0,0.00041095,4]
[321063889,1711848645872,-500.0,0.00041095,4]
[321063890,1711848645881,-121.12247236,0.00041095,4]
[321063891,1711848645898,-378.87752764,0.00041095,4]
[321063892,1711848645907,-107.91700529,0.00041095,4]
[321063906,1711849135805,212.0,0.00041984,120]
[321063939,1711849831761,-250.0,0.00033,3]
[321063940,1711849831771,-118.36047548,0.00035,3]
[321063941,1711849831817,-181.63952452,0.00035,3]
[321063942,1711849831827,-260.0,0.000365,3]
[321063943,1711849831836,-350.0,0.00037,3]
[321063944,1711849831845,-300.0,0.0003804,2]
[321063945,1711849831855,-193.36047548,0.000384,2]
[321063946,1711849833042,-138.05952452,0.000384,2]
[321063947,1711849833053,-154.80555812,0.000389,2]
[321063948,1711849833062,-400.0,0.00039,3]
[321063949,1711849833071,-498.23108687,0.00039725,4]
[321063950,1711849833081,-607.0,0.00039726,7]
[321063951,1711849833090,-274.83,0.00040213,2]
[321063952,1711849833100,-453.46,0.00040318,2]
[321063953,1711849833109,-164.31,0.00040318,2]
[321063954,1711849833119,-159.05,0.00040318,15]
[321063955,1711849833133,-685.25,0.00040318,2]
[321063956,1711849833142,-396.7,0.00040318,2]
[321063957,1711849833151,-328.0,0.00040322,2]
[321063958,1711849833161,-171.67,0.00040322,2]
[321063959,1711849833171,-192.27,0.00040322,2]
[321063960,1711849833180,-213.0,0.00040644,2]
[321063961,1711849833189,-407.852,0.00040644,2]
[321063962,1711849833198,-331.42,0.00040664,2]
[321063963,1711849833209,-607.0,0.00040685,7]
[321063964,1711849833218,-450.0,0.00041,3]
[321063965,1711849833228,-834.84389443,0.00041075,2]
[321063966,1711849833238,-180.0,0.00041096,2]
[321063967,1711849833247,-3000.0,0.000411,2]
[321063968,1711849833257,-400.0,0.000413,15]
[321063970,1711849833267,-169.09396773,0.00041365,30]
[321063972,1711849833276,-10273.21026343,0.00041365,4]
[321063974,1711849833285,-311.30166555,0.00041366,30]
[321063976,1711849833294,-226.75918482,0.00041366,4]
[321063977,1711849833305,-1462.21509825,0.00041366,30]
[321063979,1711849833314,-307.6219324,0.00041366,4]
[321063982,1711849833324,-3594.5888729,0.00041366,4]
[321063984,1711849833333,-155.284088,0.00041393,20]
[321063986,1711849833342,-900.0,0.000414,15]
[321063988,1711849833351,-547.5179,0.00041473,2]
[321063990,1711849833361,-4562.6862,0.000415,2]
[321063992,1711849833370,-1300.0,0.000415,15]
[321063994,1711849833378,-154.8593,0.00041541,2]
[321063996,1711849833387,-948.2406,0.00041541,2]
[321063998,1711849833396,-1800.0,0.000416,15]
[321064000,1711849833405,-523.63869487,0.00041639,4]
[321064002,1711849833417,-312.95244902,0.00041639,4]
[321064004,1711849833426,-500.0,0.00041639,4]
[321064006,1711849833436,-286.03308168,0.00041639,4]
[321064008,1711849833445,-362.62694119,0.00041639,4]
[321064010,1711849833455,-449.92510817,0.00041639,4]
[321064012,1711849833464,-500.0,0.00041639,4]
[321064014,1711849833474,-502.45965709,0.00041639,4]
[321064016,1711849833483,-204.44149616,0.00041639,4]
[321064018,1711849833492,-500.0,0.00041639,4]
[321064020,1711849833501,-500.0,0.00041639,4]
[321064022,1711849833510,-407.92219227,0.00041639,4]
[321064024,1711849833519,-595.14,0.00041639,4]
[321064026,1711849833529,-894.87,0.00041639,4]
[321064028,1711849833538,-194.90554119,0.00041639,4]
[321064030,1711849833547,-876.79,0.00041639,4]
[321064032,1711849833556,-500.0,0.00041639,4]
[321064034,1711849833565,-261.56180484,0.00041639,4]
[321064036,1711849833574,-619.76,0.00041639,2]
[321064038,1711849833583,-639.39,0.00041639,4]
[321064040,1711849833592,-500.0,0.00041639,4]
[321064042,1711849833601,-1855.93,0.00041639,4]
[321064044,1711849833610,-27.55810714,0.00041639,4]
[321064047,1711849833626,-1811.11189286,0.00041639,4]
[321064049,1711849833635,-500.0,0.00041639,4]
[321064051,1711849833644,-2323.3,0.00041639,4]
[321064053,1711849833653,-615.24,0.00041639,4]
[321064055,1711849833662,-359.30726845,0.00041639,4]
[321064057,1711849833671,-317.80595095,0.00041639,4]
[321064068,1711849833762,-182.19404905,0.00041639,4]
[321064070,1711849833771,-490.23451466,0.00041639,4]
[321064072,1711849833783,-439.73548534,0.00041639,4]
[321064074,1711849833792,-256.25525861,0.00041639,4]
[321064076,1711849833803,-243.74474139,0.00041639,4]
[321064078,1711849833812,-413.50525861,0.00041639,4]
[321064082,1711849833838,-493.68515,0.00041639,4]
[321064085,1711849833857,-591.50959139,0.00041639,4]
[321064087,1711849833866,-214.80525861,0.00041639,4]
[321064089,1711849833878,-1066.49474139,0.00041639,4]
[321064092,1711849833888,-500.0,0.00041639,4]
[321064094,1711849833897,-1247.87,0.00041639,4]
[321064096,1711849833906,-500.0,0.00041639,4]
[321064097,1711849833915,-2.28203235,0.00041639,4]
[321064100,1711849833927,-673.62796765,0.00041639,4]
[321064102,1711849833936,-500.0,0.00041639,4]
[321064104,1711849833945,-500.0,0.00041639,4]
[321064106,1711849833955,-616.08623638,0.00041639,4]
[321064107,1711849833964,-544.41,0.00041639,4]
[321064108,1711849833973,-500.0,0.00041639,4]
[321064109,1711849833982,-2330.79,0.00041639,4]
[321064110,1711849833990,-500.0,0.00041639,4]
[321064111,1711849834000,-500.0,0.00041639,4]
[321064112,1711849834009,-500.0,0.0004164,4]
[321064113,1711849834017,-500.0,0.0004164,4]
[321064114,1711849834026,-367.69830286,0.0004164,4]
[321064115,1711849834037,-132.30169714,0.0004164,4]
[321064117,1711849834047,-500.0,0.0004164,4]
[321064119,1711849834056,-52.41738552,0.0004164,4]
[321064139,1711849837699,-500.0,0.00041639,4]
[321064140,1711849837709,-500.0,0.00041639,4]
[321064141,1711849837718,-447.58261448,0.0004164,4]
[321064142,1711849837728,-500.0,0.0004164,4]
[321064143,1711849837737,-500.0,0.0004164,4]
[321064144,1711849837747,-588.89,0.0004164,4]
[321064145,1711849837757,-158.75996835,0.0004164,4]
[321064146,1711849837854,-341.24003165,0.0004164,4]
[321064147,1711849837864,-174.05334879,0.0004164,4]
[321064148,1711849837893,-275.96458678,0.0004164,4]
[321064149,1711849837905,-85.13575554,0.0004164,4]
[321064150,1711849837914,-500.0,0.0004164,4]
[321064151,1711849837923,-500.0,0.0004164,4]
[321064152,1711849837933,-537.19246055,0.0004164,4]
[321064153,1711849837944,-500.0,0.0004164,4]
[321064154,1711849837955,-500.0,0.0004164,4]
[321064155,1711849837964,-500.0,0.0004164,4]
[321064156,1711849837974,-500.0,0.0004164,4]
[321064157,1711849837983,-249.1714245,0.0004164,4]
[321064158,1711849837993,-500.0,0.0004164,4]
[321064159,1711849838002,-500.0,0.0004164,4]
[321064160,1711849838011,-502.5125816,0.0004164,4]
[321064161,1711849838020,-490.13626923,0.0004164,4]
[321064162,1711849838029,-500.0,0.0004164,4]
[321064163,1711849838039,-500.0,0.0004164,4]
[321064164,1711849838048,-500.0,0.0004164,4]
[321064165,1711849838058,-1719.4,0.0004164,4]
[321064166,1711849838067,-500.0,0.0004164,4]
[321064167,1711849838076,-500.0,0.0004164,4]
[321064168,1711849838086,-586.83828085,0.0004164,4]
[321064169,1711849838095,-500.0,0.0004164,4]
[321064170,1711849838105,-500.0,0.0004164,4]
[321064171,1711849838114,-500.0,0.0004164,4]
[321064172,1711849838125,-500.0,0.0004164,4]
[321064173,1711849838137,-500.0,0.0004164,4]
[321064174,1711849838146,-500.0,0.0004164,4]
[321064175,1711849838156,-500.0,0.0004164,4]
[321064176,1711849838167,-500.0,0.0004164,4]
[321064177,1711849838177,-750.18,0.0004164,4]
[321064178,1711849838186,-500.0,0.0004164,4]
[321064179,1711849838196,-500.0,0.0004164,4]
[321064180,1711849838206,-874.04,0.0004164,4]
[321064181,1711849838215,-500.0,0.0004164,4]
[321064182,1711849838225,-629.74002724,0.0004164,4]
[321064183,1711849838234,-500.0,0.0004164,4]
[321064184,1711849838243,-500.0,0.0004164,4]
[321064185,1711849838253,-500.0,0.0004164,4]
[321064186,1711849838262,-500.0,0.0004164,4]
[321064187,1711849838271,-500.0,0.0004164,4]
[321064188,1711849838281,-500.0,0.0004164,4]
[321064189,1711849838290,-500.0,0.0004164,4]
[321064190,1711849838300,-500.0,0.0004164,4]
[321064191,1711849838309,-500.0,0.0004164,4]
[321064192,1711849838318,-239.12636975,0.0004164,4]
[321064195,1711849838554,-260.87363025,0.0004164,4]
[321064196,1711849838564,-150.0,0.0004164,4]
[321064197,1711849838573,-500.0,0.0004164,4]
[321064198,1711849838582,-500.0,0.0004164,4]
[321064199,1711849838591,-500.0,0.0004164,4]
[321064200,1711849838600,-500.0,0.0004164,4]
[321064201,1711849838610,-500.0,0.0004164,4]
[321064202,1711849838619,-252.1632408,0.0004164,4]
[321064203,1711849838628,-500.0,0.0004164,4]
[321064204,1711849838637,-500.0,0.0004164,4]
[321064205,1711849838647,-500.0,0.0004164,4]
[321064206,1711849838657,-500.0,0.0004164,4]
[321064207,1711849838666,-387.3918525,0.0004164,4]
[321064208,1711849838678,-112.6081475,0.0004164,4]
[321064209,1711849838687,-500.0,0.0004164,4]
[321064210,1711849838697,-500.0,0.0004164,4]
[321064211,1711849838706,-500.0,0.0004164,4]
[321064212,1711849838716,-428.24321648,0.0004164,4]
[321064213,1711849838725,-500.0,0.0004164,4]
[321064214,1711849838734,-105.62919107,0.0004164,4]
[321064215,1711849838755,-462.26752276,0.0004164,4]
[321064216,1711849838766,-326.62658072,0.0004164,4]
[321064217,1711849838777,-173.37341928,0.0004164,4]
[321064218,1711849838786,-500.0,0.0004164,4]
[321064219,1711849838795,-36.56100364,0.0004164,4]
[321064220,1711849838814,-463.43899636,0.0004164,4]
[321064221,1711849838823,-500.0,0.0004164,4]
[321064222,1711849838832,-54.59210714,0.0004164,4]
[321064223,1711849838844,-445.40789286,0.0004164,4]
[321064224,1711849838853,-500.0,0.0004164,4]
[321064225,1711849838863,-500.0,0.0004164,4]
[321064226,1711849838873,-334.31871269,0.0004164,4]
[321064227,1711849839876,-165.68128731,0.0004164,4]
[321064228,1711849839886,-216.12090439,0.0004164,4]
[321064229,1711849839894,-500.0,0.0004164,4]
[321064230,1711849839904,-500.0,0.0004164,4]
[321064231,1711849839913,-500.0,0.0004164,4]
[321064232,1711849839922,-1084.74,0.0004164,2]
[321064233,1711849839931,-500.0,0.0004164,4]
[321064234,1711849839940,-500.0,0.0004164,4]
[321064235,1711849839949,-500.0,0.0004164,4]
[321064236,1711849839958,-500.0,0.0004164,4]
[321064237,1711849839967,-1036.30504368,0.0004164,4]
[321064238,1711849840095,-836.07495632,0.0004164,4]
[321064239,1711849840104,-198.19313868,0.0004164,4]
[321064240,1711849840152,-301.80686132,0.0004164,4]
[321064241,1711849840163,-500.0,0.0004164,4]
[321064242,1711849840173,-500.0,0.0004164,4]
[321064243,1711849840183,-631.65,0.0004164,4]
[321064244,1711849840192,-500.0,0.0004164,4]
[321064245,1711849840202,-500.0,0.0004164,4]
[321064246,1711849840211,-500.0,0.0004164,4]
[321064247,1711849840221,-1192.87621265,0.0004164,4]
[321064248,1711849840233,-398.79378735,0.0004164,4]
[321064250,1711849840242,-642.80065555,0.0004164,4]
[321064271,1711849843211,-500.0,0.00041639,4]
[321064272,1711849843221,-379.8419757,0.00041639,4]
[321064273,1711849843233,-120.1580243,0.00041639,4]
[321064274,1711849843243,-500.0,0.0004164,4]
[321064275,1711849843253,-783.21,0.0004164,4]
[321064276,1711849843262,-2185.27097246,0.0004164,4]
[321064277,1711849843273,-85.17902754,0.0004164,4]
[321064278,1711849843282,-500.0,0.0004164,4]
[321064279,1711849843295,-500.0,0.0004164,4]
[321064280,1711849843305,-1465.62,0.0004164,4]
[321064281,1711849843314,-500.0,0.0004164,4]
[321064282,1711849843324,-500.0,0.0004164,4]
[321064283,1711849843333,-1241.47,0.0004164,4]
[321064284,1711849843342,-500.0,0.0004164,4]
[321064285,1711849843351,-11929.56,0.0004164,4]
[321064286,1711849843361,-690.84,0.0004164,4]
[321064287,1711849843370,-2360.87,0.0004164,4]
[321064288,1711849843380,-500.0,0.0004164,4]
[321064289,1711849843389,-500.0,0.0004164,4]
[321064290,1711849843398,-861.27,0.0004164,4]
[321064291,1711849843409,-1084.96,0.0004164,4]
[321064292,1711849843419,-4425.65,0.0004164,4]
[321064293,1711849843429,-1394.63,0.0004164,4]
[321064294,1711849843438,-3440.9,0.0004164,4]
[321064295,1711849843447,-500.0,0.0004164,4]
[321064296,1711849843457,-500.0,0.0004164,4]
[321064297,1711849843466,-1826.7,0.0004164,4]
[321064298,1711849843475,-500.0,0.0004164,4]
[321064299,1711849843484,-500.0,0.0004164,4]
[321064300,1711849843493,-500.0,0.0004164,4]
[321064301,1711849843502,-9.16747143,0.0004164,4]
[321064302,1711849843525,-628.66252857,0.0004164,4]
[321064303,1711849843534,-1381.33,0.0004164,4]
[321064304,1711849843543,-500.0,0.0004164,4]
[321064305,1711849843552,-7332.8,0.0004164,4]
[321064306,1711849843562,-500.0,0.0004164,4]
[321064307,1711849843571,-250.27856871,0.0004164,4]
[321064308,1711849843580,-500.0,0.0004164,4]
[321064309,1711849843589,-500.0,0.0004164,4]
[321064310,1711849843598,-1028.61,0.0004164,4]
[321064311,1711849843607,-500.0,0.0004164,4]
[321064312,1711849843616,-1605.73,0.0004164,4]
[321064313,1711849843625,-500.0,0.0004164,4]
[321064314,1711849843635,-302.58890272,0.0004164,4]
[321064315,1711849846333,-1000.0,0.00040757,2]
[321064316,1711849846342,-45.97054061,0.00041639,4]
[321064321,1711849869917,8000.0,0.00025,2]
[321064322,1711849869939,8000.0,0.00025,2]
[321064323,1711849869960,8000.0,0.00025,2]
[321064324,1711849869980,8000.0,0.00025,2]
[321064325,1711849870002,8000.0,0.00025,2]
[321064326,1711849870028,8000.0,0.00025,2]
[321064327,1711849870065,8000.0,0.00025,2]
[321064328,1711849870101,8000.0,0.00025,2]
[321064329,1711849870136,8000.0,0.00025,2]
[321064330,1711849870161,8000.0,0.00025,2]
[321064331,1711849870193,8000.0,0.00025,2]
[321064332,1711849870236,8000.0,0.00025,2]
[321064333,1711849870269,1000.0,0.00025,2]
[321064334,1711849870297,620000.0,0.00025,2]
[321064335,1711849870356,1675732.32278135,0.00025,2]
[321064345,1711850022785,151.41457543,0.00041985,30]
[321064346,1711850031069,7446.44173481,0.00041985,120]
[321064348,1711850037156,287296.9140804,0.00025,2]
[321064350,1711850074746,334.97381305,0.00025,30]
[321064352,1711850502446,2606.38,0.000258,2]
[321064378,1711851031911,-161.58627387,0.00035,120]
[321064379,1711851031921,-152.0,0.0003547,3]
[321064381,1711851031930,-468.0,0.000355,3]
[321064383,1711851031939,-152.0,0.00037317,4]
[321064385,1711851031948,-29.73852852,0.00038418,2]
[321064389,1711851031973,-268.53147148,0.00038418,2]
[321064391,1711851031983,-152.0,0.00039163,5]
[321064393,1711851031992,-46.62829479,0.00039776,10]
[321064395,1711851032003,-301.44505381,0.00039776,10]
[321064397,1711851032032,-151.9266514,0.00039776,10]
[321064398,1711851032042,-152.28173114,0.0004,30]
[321064399,1711851032051,-624.32848917,0.0004,30]
[321064400,1711851032085,-411.67151083,0.0004,30]
[321064401,1711851032094,-500.0,0.00040324,10]
[321064402,1711851032103,-229.02,0.00040346,2]
[321064403,1711851032113,-800.0,0.00040346,2]
[321064404,1711851032122,-456.16,0.00040349,2]
[321064405,1711851032131,-484.77326386,0.00040365,2]
[321064406,1711851032193,-250.0,0.00040365,2]
[321064407,1711851032249,-12784.13673614,0.00040365,2]
[321064408,1711851032259,-154.80555812,0.00040371,2]
[321064409,1711851032269,-184.25,0.00040371,10]
[321064410,1711851032279,-154.89,0.00040376,15]
[321064411,1711851032288,-416.02,0.00040438,2]
[321064412,1711851032297,-200.0,0.00040471,2]
[321064413,1711851032306,-298.27,0.00040682,2]
[321064414,1711851032316,-150.0,0.00040708,2]
[321064415,1711851032325,-499.99,0.00040708,2]
[321064416,1711851032334,-155.4,0.00040708,2]
[321064417,1711851032344,-213.0,0.00040708,2]
[321064418,1711851032353,-500.0,0.00040872,10]
[321064420,1711851032362,-645.1393014,0.00041,42]
[321064422,1711851032371,-152.0,0.0004101,6]
[321064423,1711851032381,-180.0,0.00041096,2]
[321064424,1711851032391,-1200.0,0.00041146,30]
[321064425,1711851032400,-500.0,0.00041146,30]
[321064426,1711851032411,-500.0,0.00041146,30]
[321064427,1711851032420,-300.0,0.000413,15]
[321064428,1711851032430,-700.0,0.000414,15]
[321064429,1711851032439,-1200.0,0.0004142,30]
[321064430,1711851032448,-500.0,0.0004142,30]
[321064431,1711851032458,-150.0,0.00041447,30]
[321064432,1711851032467,-1100.0,0.000415,15]
[321064433,1711851032477,-3000.0,0.000416,2]
[321064434,1711851032487,-1500.0,0.000416,15]
[321064435,1711851032498,-3864.07569312,0.00041629,2]
[321064436,1711851032509,-1498.59576029,0.00041629,2]
[321064453,1711851038001,-3681.62097166,0.00041629,2]
[321064454,1711851038010,-2179.05015702,0.00041635,2]
[321064455,1711851038019,-461.19159302,0.00041637,4]
[321064456,1711851038028,-502.64506393,0.00041637,4]
[321064457,1711851038037,-263.65757609,0.00041637,4]
[321064458,1711851038046,-182.47964333,0.00041638,2]
[321064459,1711851038055,-267.67399418,0.00041638,45]
[321064460,1711851038064,-184.57960791,0.00041638,4]
[321064461,1711851038073,-1898.08527908,0.00041639,4]
[321064462,1711851038082,-590.52589966,0.00041639,4]
[321064463,1711851038092,-500.0,0.00041639,4]
[321064464,1711851038101,-500.0,0.00041639,4]
[321064465,1711851038110,-500.0,0.00041639,4]
[321064466,1711851038119,-319.99839409,0.00041639,4]
[321064467,1711851038128,-520.05149418,0.00041639,4]
[321064468,1711851038138,-500.0,0.00041639,4]
[321064469,1711851038148,-500.0,0.00041639,4]
[321064470,1711851038157,-500.0,0.00041639,4]
[321064471,1711851038166,-266.38452216,0.00041639,4]
[321064472,1711851038175,-512.34120733,0.00041639,4]
[321064473,1711851038184,-500.0,0.00041639,4]
[321064474,1711851038193,-500.0,0.00041639,4]
[321064475,1711851038202,-170.33795102,0.00041639,4]
[321064476,1711851038212,-1060.38,0.00041639,2]
[321064477,1711851038222,-500.0,0.00041639,4]
[321064478,1711851038234,-237.89,0.00041639,4]
[321064479,1711851038243,-500.0,0.00041639,4]
[321064480,1711851038255,-500.0,0.00041639,4]
[321064481,1711851038266,-500.0,0.00041639,4]
[321064482,1711851038275,-500.0,0.00041639,4]
[321064483,1711851038284,-485.61623468,0.00041639,4]
[321064484,1711851038293,-500.0,0.00041639,4]
[321064485,1711851038304,-500.0,0.00041639,4]
[321064486,1711851038314,-756.03,0.00041639,4]
[321064487,1711851038325,-375.71269337,0.00041639,4]
[321064488,1711851038338,-178.67692142,0.00041639,4]
[321064489,1711851038349,-500.0,0.00041639,4]
[321064490,1711851038358,-567.82464797,0.00041639,4]
[321064491,1711851038368,-161.39964984,0.00041639,4]
[321064493,1711851038377,-256.26148484,0.00041639,4]
[321064495,1711851038387,-500.0,0.00041639,4]
[321064496,1711851038395,-500.0,0.00041639,4]
[321064497,1711851038405,-500.0,0.00041639,4]
[321064498,1711851038414,-346.4305678,0.00041639,4]
[321064499,1711851038426,-153.5694322,0.00041639,4]
[321064500,1711851038435,-500.0,0.00041639,4]
[321064501,1711851038445,-352.74125764,0.00041639,4]
[321064502,1711851038461,-147.25874236,0.00041639,4]
[321064503,1711851038470,-500.0,0.00041639,4]
[321064504,1711851038480,-500.0,0.00041639,4]
[321064505,1711851038490,-618.49504857,0.00041639,4]
[321064506,1711851038503,-538.11008493,0.00041639,4]
[321064507,1711851038512,-500.0,0.00041639,4]
[321064508,1711851038521,-500.0,0.00041639,4]
[321064509,1711851038532,-556.52183932,0.00041639,4]
[321064510,1711851038541,-500.0,0.00041639,4]
[321064511,1711851038550,-500.0,0.00041639,4]
[321064512,1711851038559,-541.5166756,0.00041639,4]
[321064513,1711851038569,-286.94780784,0.0004164,4]
[321064514,1711851038579,-216.80447929,0.00041641,2]
[321064515,1711851038589,-20103.04728502,0.00041641,30]
[321064516,1711851038599,-1498.06417792,0.00041641,30]
[321064517,1711851038609,-607.0,0.00041644,7]
[321064518,1711851038618,-245.29240003,0.00041647,10]
[321064519,1711851038628,-196.53763923,0.00041656,2]
[321064520,1711851038637,-1200.0,0.00041694,30]
[321064521,1711851038646,-500.0,0.00041694,30]
[321064522,1711851038655,-500.0,0.00041694,30]
[321064523,1711851038665,-152.41,0.000417,17]
[321064524,1711851038674,-1054.78526833,0.000417,15]
[321064525,1711851038686,-845.21473167,0.000417,15]
[321064526,1711851038694,-882.62469181,0.00041718,2]
[321064527,1711851038704,-908.8306496,0.00041718,2]
[321064528,1711851038713,-241.45728211,0.00041718,2]
[321064529,1711851038722,-406.9933716,0.00041718,2]
[321064530,1711851038732,-652.72014088,0.0004172,2]
[321064531,1711851038741,-540.82140552,0.00041727,2]
[321064532,1711851038750,-882.62469181,0.00041733,2]
[321064533,1711851038759,-200.73262097,0.00041733,2]
[321064534,1711851038768,-500.0,0.00041734,4]
[321064535,1711851038777,-500.0,0.00041734,4]
[321064536,1711851038786,-857.58,0.00041734,4]
[321064537,1711851038795,-570.35,0.00041734,4]
[321064538,1711851038805,-500.0,0.00041734,4]
[321064539,1711851038815,-840.26,0.00041734,4]
[321064540,1711851038824,-500.0,0.00041734,4]
[321064541,1711851038833,-612.75,0.00041734,4]
[321064542,1711851038842,-1778.6,0.00041734,4]
[321064543,1711851038851,-1101.28,0.00041734,4]
[321064544,1711851038860,-589.61,0.00041734,4]
[321064545,1711851038870,-2226.5,0.00041734,4]
[321064546,1711851038879,-500.0,0.00041734,4]
[321064547,1711851038887,-891.23,0.00041734,4]
[321064548,1711851038897,-1436.25,0.00041734,4]
[321064549,1711851038905,-500.0,0.00041734,4]
[321064550,1711851038915,-1227.91,0.00041734,4]
[321064551,1711851038924,-1195.88,0.00041734,4]
[321064552,1711851038933,-500.0,0.00041734,4]
[321064553,1711851038942,-500.0,0.00041734,4]
[321064554,1711851038950,-521.72,0.00041734,4]
[321064555,1711851038959,-500.0,0.00041734,4]
[321064556,1711851038968,-2233.67,0.00041734,4]
[321064557,1711851038978,-500.0,0.00041734,4]
[321064558,1711851038987,-500.0,0.00041734,4]
[321064559,1711851038997,-1474.37,0.00041734,4]
[321064560,1711851039006,-500.0,0.00041734,4]
[321064561,1711851039015,-500.0,0.00041734,4]
[321064562,1711851039024,-500.0,0.00041734,4]
[321064563,1711851039034,-551.5,0.00041734,4]
[321064564,1711851039043,-500.0,0.00041734,4]
[321064565,1711851039051,-1850.75844427,0.00041735,60]
[321064566,1711851039062,-160.40784392,0.00041735,4]
[321064567,1711851039071,-500.0,0.00041735,4]
[321064568,1711851039080,-500.0,0.00041735,4]
[321064569,1711851039090,-500.0,0.00041735,4]
[321064570,1711851039099,-500.0,0.00041735,4]
[321064571,1711851039108,-240.95156803,0.00041735,4]
[321064572,1711851039117,-500.0,0.00041735,4]
[321064573,1711851039126,-500.0,0.00041735,4]
[321064574,1711851039135,-500.0,0.00041735,4]
[321064575,1711851039144,-1647.76,0.00041735,4]
[321064576,1711851039155,-500.0,0.00041735,4]
[321064577,1711851039165,-500.0,0.00041735,4]
[321064578,1711851039174,-251.43359001,0.00041735,4]
[321064579,1711851039932,-248.56640999,0.00041735,4]
[321064580,1711851039941,-559.95320979,0.00041735,4]
[321064581,1711851039951,-500.0,0.00041735,4]
[321064582,1711851039960,-591.93511999,0.00041735,4]
[321064583,1711851039969,-510.27488689,0.00041735,2]
[321064584,1711851039979,-500.0,0.00041735,4]
[321064585,1711851039988,-575.7903623,0.00041735,4]
[321064586,1711851039997,-500.0,0.00041735,4]
[321064587,1711851040006,-500.0,0.00041735,4]
[321064588,1711851040016,-500.0,0.00041735,4]
[321064589,1711851040025,-500.0,0.00041735,4]
[321064590,1711851040034,-500.0,0.00041735,4]
[321064591,1711851040044,-500.0,0.00041735,4]
[321064592,1711851040055,-534.07270025,0.00041735,4]
[321064593,1711851040065,-500.0,0.00041735,4]
[321064594,1711851040075,-500.0,0.00041735,4]
[321064595,1711851040288,-500.0,0.00041735,4]
[321064596,1711851040297,-500.0,0.00041735,4]
[321064597,1711851040307,-500.0,0.00041735,4]
[321064598,1711851040316,-500.0,0.00041735,4]
[321064599,1711851040326,-500.0,0.00041735,4]
[321064600,1711851040335,-500.0,0.00041735,4]
[321064601,1711851040344,-360.18570991,0.00041735,4]
[321064602,1711851040356,-139.81429009,0.00041735,4]
[321064603,1711851040365,-150.0,0.00041735,4]
[321064604,1711851040377,-386.73348634,0.00041735,4]
[321064606,1711851040389,-113.26651366,0.00041735,4]
[321064608,1711851040399,-224.08138446,0.00041735,4]
[321064611,1711851040421,-275.91861554,0.00041735,4]
[321064613,1711851040430,-500.0,0.00041735,4]
[321064615,1711851040439,-500.0,0.00041735,4]
[321064617,1711851040449,-500.0,0.00041735,4]
[321064619,1711851040458,-239.13098567,0.00041735,2]
[321064622,1711851040469,-291.72,0.00041735,2]
[321064624,1711851040485,-89.74901433,0.00041735,2]
[321064626,1711851040497,-500.0,0.00041735,4]